fUSD/lending_fUSD_20240524
["ID","MTS","AMOUNT","RATE_DAILY","PERIOD"]
[327835755,1716532245664,-3001.20940529,0.00013,2]
[327835756,1716532245676,-20073.85389504,0.00013,2]
[327835757,1716532245688,-255.88038267,0.00013,2]
[327835758,1716532245700,-6728.36055937,0.00013,2]
[327835759,1716532245711,-1099.28147333,0.00013,2]
[327835760,1716532245723,-320.89039207,0.00013,2]
[327835761,1716532245735,-368877.27503265,0.00013,2]
[327835762,1716532245746,-6215.0039777,0.00013,2]
[327835814,1716532246487,-978.296,0.00013,2]
[327835815,1716532248097,-219.21207242,0.00012999,2]
[327835816,1716532248107,-186.83867916,0.00012999,2]
[327835817,1716532248118,-1957.57778376,0.00013,2]
[327835818,1716532248135,-655.20000404,0.00013,2]
[327835819,1716532248147,-1865.0,0.00013,2]
[327835820,1716532248548,-1838.86160494,0.00013,2]
[327835821,1716532248560,-6722.0,0.00013,2]
[327835822,1716532248638,-36924.99999904,0.00013,2]
[327835826,1716532318211,2549.05213827,9.75e-05,2]
[327835827,1716532334209,2549.05213827,9.75e-05,2]
[327835828,1716532352230,1203.90080321,9.75e-05,2]
[327835829,1716532380981,289.33910277,9.75e-05,2]
[327835830,1716532395126,265.79397264,9.75e-05,2]
[327835831,1716532434042,3267.86898406,9.75e-05,2]
[327835836,1716532956251,527.06,0.00010057,2]
[327835837,1716532985386,200.0,0.00010007,2]
[327835842,1716533154376,2995.07,0.0001146,2]
[327835843,1716533159059,-155.0,0.00011508,2]
[327835844,1716533159084,-210.44648753,0.00011509,2]
[327835845,1716533159309,-1049.03,0.0001151,2]
[327835846,1716533159335,-155.0,0.00011706,2]
[327835847,1716533159358,-23900.0,0.00011708,2]
[327835848,1716533159386,-2857.07248,0.00011766,2]
[327835849,1716533159410,-4611.30103296,0.00011774,2]
[327835850,1716533159437,-30108.71149828,0.00011775,2]
[327835851,1716533159461,-13905.881,0.00011776,2]
[327835852,1716533159484,-2425.05,0.0001186,2]
[327835853,1716533159512,-553.7,0.00011889,2]
[327835854,1716533159536,-165.95,0.00011902,2]
[327835855,1716533159559,-2057.95,0.00011912,2]
[327835856,1716533159583,-150.0,0.00011974,2]
[327835857,1716533180148,117694.90750123,0.00010007,2]
[327835858,1716533180169,36152.86286078,0.00010007,2]
[327835860,1716533238833,-108310.35735866,0.00010007,2]
[327835865,1716533358349,200.0,0.00011981,2]
[327835866,1716533359757,380.0,0.00031,120]
[327835867,1716533426043,523.27,0.00010107,2]
[327835868,1716533432587,-155.0,0.00012036,2]
[327835869,1716533432597,-210.44648753,0.00012037,2]
[327835870,1716533432606,-655.76,0.00012042,2]
[327835871,1716533432616,-999.99,0.00012042,2]
[327835872,1716533432626,-1382.21,0.00012069,2]
[327835874,1716533432635,-283.21926182,0.00012077,2]
[327835877,1716533432646,-516.78073818,0.00012077,2]
[327835879,1716533432655,-323.5012229,0.00012093,2]
[327835881,1716533432667,-176.4987771,0.00012093,2]
[327835882,1716533432676,-176.95,0.00012286,2]
[327835883,1716533432685,-325.52037745,0.00012349,2]
[327835884,1716533432696,-897.23964173,0.00012349,2]
[327835885,1716533432706,-523.27,0.00012371,2]
[327835886,1716533432716,-250.0,0.00012381,2]
[327835887,1716533432725,-163.8,0.00012381,2]
[327835888,1716533432734,-1164.33,0.00012381,2]
[327835889,1716533432744,-2107.37,0.00012381,2]
[327835890,1716533432757,-722.71,0.00012381,2]
[327835891,1716533432767,-9999.99,0.00012381,2]
[327835892,1716533432775,-499.99,0.00012501,2]
[327835893,1716533432784,-150.99,0.00012501,2]
[327835894,1716533432793,-2906.39,0.00012501,2]
[327835895,1716533432802,-1338.98,0.00012501,2]
[327835896,1716533432811,-167.63,0.00012514,2]
[327835897,1716533432821,-5579.63,0.00012514,2]
[327835898,1716533432830,-33243.50751647,0.00012514,2]
[327835899,1716533432841,-13427.50248353,0.00012514,2]
[327835900,1716533432851,-150.99,0.00012514,2]
[327835901,1716533432860,-150.99,0.00012514,2]
[327835902,1716533432869,-366.55,0.00012514,2]
[327835903,1716533432878,-1113.42,0.00012514,2]
[327835904,1716533432887,-1664.29,0.00012514,2]
[327835905,1716533432896,-163.62,0.00012639,2]
[327835906,1716533432906,-500.0,0.000128,2]
[327835908,1716533432915,-24623.23516228,0.000128,2]
[327835911,1716533432946,-2025.59405055,0.000128,2]
[327835912,1716533432957,-2796.90567683,0.000128,2]
[327835914,1716533432969,-32937.85121034,0.000128,2]
[327835916,1716533432978,-175.13,0.000128,2]
[327835917,1716533432987,-415.86,0.000128,2]
[327835918,1716533432997,-415.86,0.000128,2]
[327835919,1716533433008,-150.0,0.000128,2]
[327835920,1716533433017,-415.86,0.000128,2]
[327835921,1716533433026,-150.0,0.000128,2]
[327835922,1716533433035,-415.86,0.000128,2]
[327835923,1716533433044,-174.37,0.00012832,2]
[327835924,1716533433054,-878.61,0.00012841,2]
[327835925,1716533433064,-451.78,0.00012841,2]
[327835926,1716533433073,-415.86,0.00012841,2]
[327835927,1716533433083,-870.34,0.00012841,2]
[327835928,1716533433092,-870.34,0.00012841,2]
[327835929,1716533433101,-415.86,0.00012841,2]
[327835930,1716533433111,-415.86,0.00012841,2]
[327835931,1716533433120,-870.34,0.00012841,2]
[327835932,1716533433129,-415.86,0.00012841,2]
[327835933,1716533433138,-870.34,0.00012841,2]
[327835934,1716533433147,-870.34,0.00012841,2]
[327835935,1716533433156,-870.34,0.00012841,2]
[327835936,1716533433166,-870.34,0.00012841,2]
[327835937,1716533433175,-870.34,0.00012841,2]
[327835938,1716533433185,-177.04319709,0.00012869,2]
[327835939,1716533433195,-7166.04257102,0.0001287,2]
[327835940,1716533433204,-352.11,0.00012878,2]
[327835941,1716533433214,-352.11,0.00012878,2]
[327835942,1716533433223,-168.96300013,0.00012898,2]
[327835943,1716533433233,-2363.87531494,0.00012898,2]
[327835944,1716533433242,-2363.87531494,0.00012898,2]
[327835945,1716533433254,-2363.87531494,0.00012898,2]
[327835946,1716533433263,-2363.87531494,0.00012898,2]
[327835947,1716533433273,-2363.87531494,0.00012898,2]
[327835948,1716533433283,-2363.87531494,0.00012898,2]
[327835949,1716533433292,-2363.87531494,0.00012898,2]
[327835950,1716533433302,-2363.87531494,0.00012898,2]
[327835951,1716533433311,-2363.87531494,0.00012898,2]
[327835952,1716533433321,-305.08514526,0.00012899,2]
[327835953,1716533433330,-16883.4515,0.000129,2]
[327835954,1716533433340,-1081.0133,0.000129,2]
[327835955,1716533433349,-6532.3159,0.000129,2]
[327835956,1716533433359,-75043.04823091,0.000129,2]
[327835957,1716533438516,-162861.37566909,0.000129,2]
[327835959,1716533438526,-2363.87531494,0.000129,2]
[327835961,1716533438535,-6413.06690094,0.000129,2]
[327835962,1716533438546,-159.33145613,0.000129,2]
[327835964,1716533438555,-159.33145613,0.000129,2]
[327835966,1716533438564,-41374.41904123,0.00012955,2]
[327835968,1716533438575,-235.63,0.00012978,2]
[327835970,1716533438584,-524.45,0.00012978,2]
[327835971,1716533438593,-421.08,0.00012978,2]
[327835973,1716533438603,-153.56,0.00012978,2]
[327835975,1716533438612,-157.43,0.00012978,2]
[327835977,1716533438621,-166.79,0.00012978,2]
[327835978,1716533438630,-451.61,0.00012978,2]
[327835979,1716533438639,-150.0,0.00012978,2]
[327835980,1716533438649,-276.55,0.00012978,2]
[327835981,1716533438658,-150.0,0.00012978,2]
[327835982,1716533438668,-524.45,0.00012978,2]
[327835983,1716533438676,-421.08,0.00012978,2]
[327835984,1716533438686,-150.0,0.00012978,2]
[327835985,1716533438695,-150.0,0.00012978,2]
[327835986,1716533438703,-352.11,0.00012978,2]
[327835987,1716533438712,-150.0,0.00012978,2]
[327835988,1716533438722,-163.6,0.00012978,2]
[327835989,1716533438731,-421.08,0.00012978,2]
[327835990,1716533438741,-524.45,0.00012978,2]
[327835991,1716533438752,-150.0,0.00012978,2]
[327835992,1716533438761,-150.0,0.00012978,2]
[327835993,1716533438770,-150.0,0.00012978,2]
[327835994,1716533438780,-150.0,0.00012978,2]
[327835995,1716533438789,-163.6,0.00012978,2]
[327835996,1716533438799,-352.11,0.00012978,2]
[327835997,1716533438808,-421.08,0.00012978,2]
[327835998,1716533438817,-150.0,0.00012978,2]
[327836000,1716533438826,-150.0,0.00012978,2]
[327836002,1716533438843,-524.45,0.00012978,2]
[327836003,1716533438855,-163.6,0.00012978,2]
[327836004,1716533438864,-352.11,0.00012978,2]
[327836005,1716533438873,-163.6,0.00012978,2]
[327836006,1716533438882,-150.0,0.00012978,2]
[327836007,1716533438891,-150.0,0.00012978,2]
[327836008,1716533438900,-421.08,0.00012978,2]
[327836009,1716533438910,-352.11,0.00012978,2]
[327836010,1716533438919,-150.0,0.00012978,2]
[327836011,1716533438928,-524.45,0.00012978,2]
[327836012,1716533438938,-150.0,0.00012978,2]
[327836013,1716533438947,-524.45,0.00012978,2]
[327836014,1716533438957,-421.08,0.00012978,2]
[327836015,1716533438967,-159.05,0.00012978,2]
[327836016,1716533438976,-163.6,0.00012978,2]
[327836017,1716533438985,-352.11,0.00012978,2]
[327836018,1716533438995,-421.08,0.00012978,2]
[327836019,1716533439006,-163.6,0.00012978,2]
[327836020,1716533439016,-150.0,0.00012978,2]
[327836021,1716533439025,-352.11,0.00012978,2]
[327836022,1716533439035,-524.45,0.00012978,2]
[327836023,1716533439045,-163.6,0.00012978,2]
[327836024,1716533439055,-421.08,0.00012978,2]
[327836025,1716533439065,-150.0,0.00012978,2]
[327836026,1716533439075,-524.45,0.00012978,2]
[327836027,1716533439085,-421.08,0.00012978,2]
[327836028,1716533439094,-524.45,0.00012978,2]
[327836029,1716533439104,-176.03329524,0.00012998,2]
[327836030,1716533439114,-367.52961944,0.00012998,2]
[327836031,1716533439124,-276.85607802,0.00012998,2]
[327836032,1716533439134,-1262.08504162,0.00012998,2]
[327836033,1716533439143,-415.20268921,0.00012998,2]
[327836034,1716533439153,-340.92727371,0.00012998,2]
[327836035,1716533439163,-5768.70343038,0.00012998,2]
[327836036,1716533439173,-488.70573697,0.00012998,2]
[327836037,1716533439183,-155.0,0.00012998,2]
[327836038,1716533439192,-39035.88034945,0.00012998,2]
[327836039,1716533439202,-274.67946509,0.00012999,2]
[327836040,1716533439211,-3934.95517611,0.00012999,2]
[327836041,1716533439221,-8112836.34694022,0.00013,2]
[327836042,1716533439234,-237265.07505597,0.00013,2]
[327836043,1716533439246,-1478.26174416,0.00013,2]
[327836044,1716533439260,-405.48424,0.00013,2]
[327836045,1716533439528,-2298.34491096,0.00013,2]
[327836046,1716533439542,-731255.57444059,0.00013,2]
[327836047,1716533439553,-2829.41991002,0.00013,2]
[327836050,1716533441510,-63973.45146135,0.00013,2]
[327836051,1716533441522,-519.18639018,0.00013,2]
[327836052,1716533442198,-1509.61701147,0.00013,2]
[327836053,1716533443011,-1256.27820342,0.00013,2]
[327836056,1716533443026,-1481.68020001,0.00013,2]
[327836058,1716533443038,-552.33090042,0.00013,2]
[327836060,1716533443051,-2103.6861044,0.00013,2]
[327836062,1716533443065,-356.19588052,0.00013,2]
[327836068,1716533443115,-2089.66046276,0.00013,2]
[327836070,1716533443127,-998.89653531,0.00013,2]
[327836072,1716533443139,-892.19844599,0.00013,2]
[327836075,1716533443151,-3364.15696614,0.00013,2]
[327836077,1716533443163,-580.76486239,0.00013,2]
[327836079,1716533443175,-2944.99999991,0.00013,2]
[327836129,1716533443694,-752.06835652,0.00013,2]
[327836132,1716533443776,-3033.69858913,0.00013,2]
[327836133,1716533443788,-486.91192548,0.00013,2]
[327836134,1716533443800,-2934.35996073,0.00013,2]
[327836135,1716533443812,-1047.62003242,0.00013,2]
[327836136,1716533443823,-2416.55636085,0.00013,2]
[327836137,1716533443835,-475.67259041,0.00013,2]
[327836138,1716533443846,-3198.06694715,0.00013,2]
[327836139,1716533444007,-870.34,0.00012841,2]
[327836140,1716533444016,-306.48443892,0.000129,2]
[327836141,1716533444026,-421.08,0.00012978,2]
[327836142,1716533444038,-524.45,0.00012978,2]
[327836143,1716533444048,-1849.74485392,0.00013,2]
[327836144,1716533444059,-40289.17925678,0.00013,2]
[327836145,1716533444071,-304.70333,0.00013,2]
[327836146,1716533444082,-285.67618978,0.00013,2]
[327836147,1716533444093,-7351.26807699,0.00013,2]
[327836148,1716533444105,-6823.92403971,0.00013,2]
[327836149,1716533444117,-1309.3021398,0.00013,2]
[327836150,1716533444128,-663.6494002,0.00013,2]
[327836151,1716533444139,-336.44117737,0.00013,2]
[327836152,1716533444151,-2984.20031291,0.00013,2]
[327836153,1716533444162,-1223.34715648,0.00013,2]
[327836154,1716533444174,-967.37861202,0.00013,2]
[327836160,1716533446546,-1212.05538598,0.00013,2]
[327836162,1716533446558,-8340.80138995,0.00013,2]
[327836163,1716533446569,-10462.89910724,0.00013,2]
[327836165,1716533446583,-348.5255592,0.00013,2]
[327836167,1716533446594,-257.81668477,0.00013,2]
[327836168,1716533446771,-108980.87821957,0.00013,2]
[327836169,1716533446783,-16959.0331764,0.00013,2]
[327836170,1716533446794,-508.5,0.00013,2]
[327836171,1716533446807,-781.46639114,0.00013,2]
[327836172,1716533446818,-627.67637865,0.00013,2]
[327836173,1716533446829,-6718.84618597,0.00013,2]
[327836174,1716533446877,-37583.55279399,0.00013,2]
[327836175,1716533446889,-2218.45898703,0.00013,2]
[327836176,1716533446903,-1145.62207892,0.00013,2]
[327836177,1716533446914,-619.76020313,0.00013,2]
[327836178,1716533446925,-18410.0,0.00013,2]
[327836179,1716533446936,-2340.93003738,0.00013,2]
[327836180,1716533446948,-8739.55034878,0.00013,2]
[327836181,1716533447813,308.08,0.00010959,2]
[327836182,1716533588679,10289.18837576,0.00010959,2]
[327836183,1716533595269,7520.30716541,0.00010959,2]
[327836184,1716533601155,5650.0,0.00010959,2]
[327836188,1716533814358,1006.65982889,0.00031,120]
[327836249,1716533912389,364.49648891,0.00011999,2]
[327836250,1716533915108,155.0,0.00011999,2]
[327836251,1716533948732,3010.74416602,0.00011999,2]
[327836252,1716533963901,1000.0,0.00011654,2]
[327836253,1716533996912,364.49648891,0.00011999,2]
[327836254,1716534014604,250.0,0.00011654,2]
[327836255,1716534018525,250.0,0.0001158,2]
[327836256,1716534030719,174.82,0.00011667,2]
[327836257,1716534030926,174.82,0.00011819,2]
[327836258,1716534031447,174.82,0.00011971,2]
[327836259,1716534047361,23900.0,0.00011522,2]
[327836260,1716534052013,495.79,9.61e-05,2]
[327836261,1716534052228,495.79,0.00011874,2]
[327836262,1716534089662,153.43,0.00011548,2]
[327836263,1716534118498,1304.32,0.00011548,2]
[327836264,1716534179409,3173.71,0.00011527,2]
[327836265,1716534290393,155.0,0.00011527,2]
[327836266,1716534315172,155.2261052,0.00011527,2]
[327836267,1716534319219,7626.19490981,0.00011527,2]
[327836268,1716534327281,289.22433229,0.00011527,2]
[327836269,1716534331196,19730.16017374,0.00011527,2]
[327836271,1716534333637,1360.30965247,0.00011527,2]
[327836272,1716534335170,155.0,0.00011527,2]
[327836273,1716534338820,1000.00007518,0.00011527,2]
[327836274,1716534339218,1285.44470764,0.00011527,2]
[327836275,1716534339243,6197.69860316,0.00011527,2]
[327836276,1716534345248,289.22433229,0.00011527,2]
[327836277,1716534346310,155.0,0.00011527,2]
[327836278,1716534351609,1360.30965247,0.00011527,2]
[327836279,1716534363047,362.23063695,0.00011527,2]
[327836280,1716534380982,362.23063695,0.00011527,2]
[327836281,1716534396986,362.03102229,0.00011527,2]
[327836316,1716534469220,35392.01719031,0.00011999,2]
[327836317,1716534477816,173.5914266,0.00011999,2]
[327836318,1716534481064,250.0,0.00011488,2]
[327836319,1716534483179,5903.00598559,0.00011999,2]
[327836320,1716534491248,1000.0,0.00011999,2]
[327836321,1716534492163,148192.66051339,0.00011999,2]
[327836322,1716534634453,-466.7,9.45e-05,2]
[327836324,1716534634462,-1722.7,9.45e-05,2]
[327836327,1716534634480,-3352.01,9.45e-05,2]
[327836329,1716534634492,-5150.40389236,9.45e-05,2]
[327836331,1716534634503,-1373.27,9.45e-05,2]
[327836333,1716534634515,-522.3297664,9.45e-05,2]
[327836335,1716534634526,-2145.0,9.45e-05,2]
[327836336,1716534634839,-430.43832528,9.45e-05,2]
[327836339,1716534634851,-670.75884,9.45e-05,2]
[327836341,1716534634862,-280.56667432,9.45e-05,2]
[327836343,1716534634873,-32838.80943139,9.45e-05,2]
[327836345,1716534634886,-2398.1297286,9.45e-05,2]
[327836347,1716534634900,-66160.60979265,9.45e-05,2]
[327836348,1716534634910,-223.26314755,0.0001,2]
[327836349,1716534634921,-223.26314755,0.0001,2]
[327836350,1716534634932,-223.26314755,0.0001,2]
[327836351,1716534634941,-223.26314755,0.0001,2]
[327836352,1716534634951,-223.26314755,0.0001,2]
[327836353,1716534634960,-223.26314755,0.0001,2]
[327836354,1716534634973,-223.26314755,0.0001,2]
[327836355,1716534634983,-223.26314755,0.0001,2]
[327836356,1716534634993,-223.26314755,0.0001,2]
[327836357,1716534635003,-223.26314755,0.0001,2]
[327836358,1716534635012,-223.26314755,0.0001,2]
[327836359,1716534635022,-223.26314755,0.0001,2]
[327836360,1716534635031,-223.26314755,0.00011218,2]
[327836361,1716534635040,-869.21,0.00011228,2]
[327836362,1716534635050,-223.26314755,0.00011228,2]
[327836363,1716534635060,-223.26314755,0.00011228,2]
[327836364,1716534635071,-223.26314755,0.00011228,2]
[327836365,1716534635080,-223.26314755,0.00011228,2]
[327836366,1716534635089,-223.26314755,0.00011228,2]
[327836367,1716534635099,-223.26314755,0.00011228,2]
[327836368,1716534635108,-223.26314755,0.00011228,2]
[327836369,1716534635119,-223.26314755,0.00011228,2]
[327836370,1716534635128,-223.26314755,0.00011228,2]
[327836371,1716534635138,-223.26314755,0.00011228,2]
[327836372,1716534635147,-223.26314755,0.00011228,2]
[327836373,1716534635157,-223.26314755,0.00011228,2]
[327836374,1716534635167,-223.26314755,0.00011228,2]
[327836375,1716534635176,-223.26314755,0.00011228,2]
[327836376,1716534635189,-223.26314755,0.00011228,2]
[327836377,1716534635198,-23900.0,0.00011238,2]
[327836378,1716534635208,-223.26314755,0.00011269,2]
[327836379,1716534635217,-200.0,0.00011279,2]
[327836380,1716534635226,-466.7,0.00011714,2]
[327836381,1716534635235,-726.75542372,0.00011901,2]
[327836382,1716534635245,-223.26314755,0.00011982,2]
[327836383,1716534635254,-223.26314755,0.00011989,2]
[327836384,1716534635263,-223.26314755,0.00011989,2]
[327836385,1716534635273,-223.26314755,0.00011989,2]
[327836386,1716534635282,-223.26314755,0.00011989,2]
[327836387,1716534635292,-223.26314755,0.00011989,2]
[327836388,1716534635302,-223.26314755,0.00011989,2]
[327836389,1716534635311,-223.26314755,0.00011989,2]
[327836390,1716534635322,-223.26314755,0.00011989,2]
[327836391,1716534635331,-223.26314755,0.00011989,2]
[327836392,1716534635341,-223.26314755,0.00011989,2]
[327836393,1716534635351,-223.26314755,0.00011989,2]
[327836394,1716534635361,-223.26314755,0.00011989,2]
[327836395,1716534635371,-223.26314755,0.00011989,2]
[327836396,1716534635380,-223.26314755,0.00011989,2]
[327836397,1716534635390,-223.26314755,0.00011989,2]
[327836398,1716534635399,-223.26314755,0.00011989,2]
[327836399,1716534635408,-223.26314755,0.00011989,2]
[327836400,1716534635419,-223.26314755,0.00011989,2]
[327836401,1716534635430,-223.26314755,0.00011989,2]
[327836402,1716534635439,-223.26314755,0.00011989,2]
[327836403,1716534635449,-223.26314755,0.00011989,2]
[327836404,1716534635458,-223.26314755,0.00011989,2]
[327836405,1716534635468,-223.26314755,0.00011989,2]
[327836406,1716534635478,-223.26314755,0.00011989,2]
[327836407,1716534635487,-223.26314755,0.00011989,2]
[327836408,1716534635497,-223.26314755,0.00011989,2]
[327836409,1716534635507,-223.26314755,0.00011989,2]
[327836410,1716534635516,-223.26314755,0.00011989,2]
[327836411,1716534635526,-223.26314755,0.00011989,2]
[327836412,1716534635536,-223.26314755,0.00011989,2]
[327836413,1716534635546,-223.26314755,0.00011989,2]
[327836414,1716534635557,-223.26314755,0.00011989,2]
[327836415,1716534635566,-223.26314755,0.00011989,2]
[327836416,1716534635576,-223.26314755,0.00011989,2]
[327836417,1716534635585,-223.26314755,0.00011989,2]
[327836418,1716534635595,-223.26314755,0.00011989,2]
[327836419,1716534635604,-223.26314755,0.00011989,2]
[327836420,1716534635614,-223.26314755,0.00011989,2]
[327836421,1716534635624,-726.75542367,0.00011992,2]
[327836422,1716534635635,-253.9004451,0.00011999,2]
[327836423,1716534635644,-112572.68911202,0.00011999,2]
[327836424,1716534635657,-397.08384421,0.00011999,2]
[327836425,1716534635669,-228375.20762283,0.00011999,2]
[327836426,1716534635685,-6746.64957478,0.00011999,2]
[327836427,1716534635697,-689.36804504,0.00011999,2]
[327836428,1716534635708,-23419.70804343,0.00011999,2]
[327836440,1716534639947,-223.26314755,0.00011989,2]
[327836441,1716534639956,-223.26314755,0.00011989,2]
[327836442,1716534639967,-223.26314755,0.00011989,2]
[327836443,1716534639977,-10.15038449,0.00011989,2]
[327836444,1716534639989,-213.11276306,0.00011989,2]
[327836445,1716534640000,-223.26314755,0.00011989,2]
[327836446,1716534640009,-223.26314755,0.00011989,2]
[327836447,1716534640019,-223.26314755,0.00011989,2]
[327836448,1716534640028,-223.26314755,0.00011989,2]
[327836449,1716534640038,-223.26314755,0.00011989,2]
[327836450,1716534640048,-223.26314755,0.00011989,2]
[327836451,1716534640057,-223.26314755,0.00011989,2]
[327836452,1716534640067,-223.26314755,0.00011989,2]
[327836453,1716534640078,-223.26314755,0.00011989,2]
[327836454,1716534640087,-223.26314755,0.00011989,2]
[327836455,1716534640097,-223.26314755,0.00011989,2]
[327836456,1716534640106,-223.26314755,0.00011989,2]
[327836457,1716534640116,-223.26314755,0.00011989,2]
[327836458,1716534640125,-223.26314755,0.00011989,2]
[327836459,1716534640135,-223.26314755,0.00011989,2]
[327836460,1716534640145,-223.26314755,0.00011989,2]
[327836461,1716534640154,-223.26314755,0.00011989,2]
[327836462,1716534640164,-223.26314755,0.00011989,2]
[327836463,1716534640174,-223.26314755,0.00011989,2]
[327836464,1716534640185,-223.26314755,0.00011989,2]
[327836465,1716534640194,-223.26314755,0.00011989,2]
[327836466,1716534640203,-223.26314755,0.00011989,2]
[327836467,1716534640213,-223.26314755,0.00011989,2]
[327836468,1716534640222,-223.26314755,0.00011989,2]
[327836469,1716534640232,-223.26314755,0.00011989,2]
[327836470,1716534640242,-223.26314755,0.00011989,2]
[327836471,1716534640252,-223.26314755,0.00011989,2]
[327836472,1716534640262,-168729.13745485,0.00011999,2]
[327836473,1716534640271,-150.81,0.00012,2]
[327836474,1716534640282,-150.81,0.00012,2]
[327836477,1716534640292,-150.81,0.00012,2]
[327836479,1716534640301,-672764.808635,0.00012,2]
[327836481,1716534640311,-1415.29,0.00012001,2]
[327836483,1716534640320,-167.58,0.00012002,2]
[327836485,1716534640330,-150.99,0.00012002,2]
[327836487,1716534640339,-726.75542367,0.00012083,2]
[327836489,1716534640349,-9999.99,0.00012083,2]
[327836491,1716534640360,-13450.23,0.00012083,2]
[327836492,1716534640370,-174.82,0.00012123,2]
[327836493,1716534640379,-2500.0,0.00012146,2]
[327836494,1716534640389,-154.02512955,0.00012147,2]
[327836495,1716534640399,-2596.5919,0.00012148,2]
[327836496,1716534640408,-267.5389,0.00012148,2]
[327836497,1716534640418,-20078.8288,0.00012148,2]
[327836498,1716534640427,-726.75542367,0.00012173,2]
[327836499,1716534640439,-1382.72,0.00012236,2]
[327836500,1716534640449,-150.81,0.00012237,2]
[327836501,1716534640459,-411.64486501,0.00012246,2]
[327836502,1716534640469,-211.34838905,0.00012246,2]
[327836503,1716534640479,-157.74148691,0.00012246,2]
[327836504,1716534640488,-367.09138748,0.00012246,2]
[327836505,1716534640499,-499.99,0.00012246,2]
[327836506,1716534640510,-9999.99,0.00012247,2]
[327836507,1716534640520,-299.99,0.00012247,2]
[327836508,1716534640530,-3009.85,0.00012247,2]
[327836509,1716534640539,-60304.635,0.00012247,2]
[327836510,1716534640549,-182.61,0.00012247,2]
[327836511,1716534640722,-31743.9965,0.00012249,2]
[327836512,1716534640732,-726.75542367,0.00012264,2]
[327836513,1716534640741,-174.82,0.00012275,2]
[327836514,1716534640751,-421.08,0.00012278,2]
[327836515,1716534640760,-524.45,0.00012278,2]
[327836516,1716534640769,-159.05,0.00012278,2]
[327836517,1716534640778,-163.6,0.00012278,2]
[327836518,1716534640788,-803.72,0.00012278,2]
[327836519,1716534640797,-150.0,0.00012278,2]
[327836520,1716534640806,-163.6,0.00012278,2]
[327836521,1716534640816,-524.45,0.00012278,2]
[327836522,1716534640825,-150.0,0.00012278,2]
[327836523,1716534640835,-421.08,0.00012278,2]
[327836524,1716534640844,-524.45,0.000123,2]
[327836525,1716534640854,-150.0,0.000123,2]
[327836526,1716534640864,-150.0,0.000123,2]
[327836527,1716534640873,-352.11,0.000123,2]
[327836528,1716534640883,-163.6,0.000123,2]
[327836529,1716534640898,-421.08,0.000123,2]
[327836530,1716534640908,-150.0,0.000123,2]
[327836531,1716534640917,-207.97202329,0.00012344,2]
[327836534,1716534640927,-11877.67616735,0.00012345,2]
[327836536,1716534640941,-3212.42301623,0.00012345,2]
[327836537,1716534640951,-719.89183977,0.00012345,2]
[327836539,1716534640961,-326.03857362,0.00012345,2]
[327836540,1716534640972,-259.77429362,0.00012345,2]
[327836542,1716534640982,-10529.4669443,0.00012347,2]
[327836543,1716534640991,-488.70573697,0.00012348,2]
[327836544,1716534641000,-1262.08504162,0.00012348,2]
[327836545,1716534641009,-340.92727371,0.00012348,2]
[327836546,1716534641019,-276.85607802,0.00012348,2]
[327836547,1716534641028,-176.03329524,0.00012348,2]
[327836548,1716534641037,-415.20268921,0.00012348,2]
[327836549,1716534641046,-158.53620513,0.00012349,2]
[327836550,1716534641056,-726.75542367,0.00012355,2]
[327836551,1716534641065,-154.02512954,0.00012398,2]
[327836552,1716534641074,-726.75542367,0.00012446,2]
[327836553,1716534641084,-164.94,0.00012484,2]
[327836554,1716534641093,-352.11,0.000125,2]
[327836555,1716534641103,-421.08,0.000125,2]